[Event "Elite Hotels Open 2024"]
[Site "Elite Stadshotellet, Kungsgatan 6, Vaxjo, Sweden"]
[Date "2024.02.09"]
[Round "1.12"]
[White "Hammarlund, Carl"]
[Black "Kistrup, Nicolai"]
[Result "0-1"]
[TimeControl "15 minutes + 5 seconds per move from move one (Round 1 - 4) / 90 minutes + 30 seconds per move from move one (Round 5 - 8)"]
[BlackTitle "FM"]
[WhiteFideId "1738917"]
[BlackFideId "1444816"]
[WhiteElo "1811"]
[BlackElo "2326"]

1. d4 {[%clk 00:15:07]} {[%emt 00:00:02]} Nf6 {[%clk 00:15:08]} {[%emt
00:00:03]} 2. c4 {[%clk 00:15:04]} {[%emt 00:00:08]} e6 {[%clk 00:15:05]}
{[%emt 00:00:08]} 3. g3 {[%clk 00:15:04]} {[%emt 00:00:05]} d5 {[%clk
00:14:56]} {[%emt 00:00:14]} 4. Bg2 {[%clk 00:15:06]} {[%emt 00:00:03]} dxc4
{[%clk 00:14:46]} {[%emt 00:00:16]} 5. Nf3 {[%clk 00:14:58]} {[%emt 00:00:12]}
c5 {[%clk 00:14:48]} {[%emt 00:00:03]} 6. Qa4+ {[%clk 00:14:16]} {[%emt
00:00:46]} Nbd7 {[%clk 00:14:49]} {[%emt 00:00:04]} 7. Qxc4 {[%clk 00:14:08]}
{[%emt 00:00:13]} a6 {[%clk 00:13:58]} {[%emt 00:00:57]} 8. a4 {[%clk
00:13:45]} {[%emt 00:00:28]} b5 {[%clk 00:13:54]} {[%emt 00:00:08]} 9. Qc2
{[%clk 00:12:57]} {[%emt 00:00:52]} Bb7 {[%clk 00:13:49]} {[%emt 00:00:11]} 10.
axb5 {[%clk 00:12:34]} {[%emt 00:00:28]} axb5 {[%clk 00:13:51]} {[%emt
00:00:04]} 11. Rxa8 {[%clk 00:12:36]} {[%emt 00:00:03]} Qxa8 {[%clk 00:13:47]}
{[%emt 00:00:09]} 12. O-O {[%clk 00:11:55]} {[%emt 00:00:45]} Be4 {[%clk
00:13:41]} {[%emt 00:00:11]} 13. Qb3 {[%clk 00:11:06]} {[%emt 00:00:55]} Bxb1
{[%clk 00:13:42]} {[%emt 00:00:03]} 14. Qxb5 {[%clk 00:08:06]} {[%emt
00:03:05]} Be4 {[%clk 00:13:29]} {[%emt 00:00:18]} 15. Bg5 {[%clk 00:07:19]}
{[%emt 00:00:52]} Bc6 {[%clk 00:11:59]} {[%emt 00:01:35]} 16. Qc4 {[%clk
00:06:12]} {[%emt 00:01:13]} Ne4 {[%clk 00:11:24]} {[%emt 00:00:40]} 17. Bf4
{[%clk 00:05:18]} {[%emt 00:00:58]} Bd5 {[%clk 00:09:31]} {[%emt 00:01:57]} 18.
Qb5 {[%clk 00:04:38]} {[%emt 00:00:45]} Nd6 {[%clk 00:06:35]} {[%emt 00:03:01]}
19. Bxd6 {[%clk 00:03:09]} {[%emt 00:01:34]} Bc6 {[%clk 00:05:43]} {[%emt
00:00:57]} 20. Qc4 {[%clk 00:01:07]} {[%emt 00:02:07]} Bxd6 {[%clk 00:05:38]}
{[%emt 00:00:10]} 21. dxc5 {[%clk 00:00:56]} {[%emt 00:00:16]} Nxc5 {[%clk
00:05:18]} {[%emt 00:00:26]} 22. Qd4 {[%clk 00:00:29]} {[%emt 00:00:32]} Ke7
{[%clk 00:04:31]} {[%emt 00:00:52]} 23. b4 {[%clk 00:00:27]} {[%emt 00:00:07]}
Nd7 {[%clk 00:03:29]} {[%emt 00:01:06]} 24. Ra1 {[%clk 00:00:30]} {[%emt
00:00:02]} Qb8 {[%clk 00:03:19]} {[%emt 00:00:15]} 25. Qxg7 {[%clk 00:00:19]}
{[%emt 00:00:16]} Qg8 {[%clk 00:02:51]} {[%emt 00:00:33]} 26. Qc3 {[%clk
00:00:21]} {[%emt 00:00:04]} Bd5 {[%clk 00:02:43]} {[%emt 00:00:13]} 27. Ra7
{[%clk 00:00:14]} {[%emt 00:00:11]} Qb8 {[%clk 00:02:41]} {[%emt 00:00:07]} 28.
Ra1 {[%emt 00:00:14]} 0-1

[Event "Elite Hotels Open 2024"]
[Site "Elite Stadshotellet, Kungsgatan 6, Vaxjo, Sweden"]
[Date "2024.02.09"]
[Round "1.13"]
[White "Kristensen, Kaare Hove"]
[Black "Helin, Mikael"]
[Result "1-0"]
[TimeControl "15 minutes + 5 seconds per move from move one (Round 1 - 4) / 90 minutes + 30 seconds per move from move one (Round 5 - 8)"]
[WhiteTitle "IM"]
[BlackTitle "CM"]
[WhiteFideId "1400940"]
[BlackFideId "1703838"]
[WhiteElo "2324"]
[BlackElo "1809"]

1. e4 {[%clk 00:15:05]} {[%emt 00:00:04]} d6 {[%clk 00:15:01]} {[%emt
00:00:09]} 2. d4 {[%clk 00:15:07]} {[%emt 00:00:04]} Nf6 {[%clk 00:15:01]}
{[%emt 00:00:05]} 3. Nc3 {[%clk 00:15:10]} {[%emt 00:00:02]} Nbd7 {[%clk
00:15:04]} {[%emt 00:00:02]} 4. f4 {[%clk 00:15:06]} {[%emt 00:00:09]} e5
{[%clk 00:15:07]} {[%emt 00:00:02]} 5. Nf3 {[%clk 00:15:08]} {[%emt 00:00:03]}
exd4 {[%clk 00:15:08]} {[%emt 00:00:03]} 6. Qxd4 {[%clk 00:14:59]} {[%emt
00:00:14]} c6 {[%clk 00:15:09]} {[%emt 00:00:04]} 7. e5 {[%clk 00:13:36]}
{[%emt 00:01:29]} dxe5 {[%clk 00:11:34]} {[%emt 00:03:40]} 8. fxe5 {[%clk
00:13:38]} {[%emt 00:00:02]} Bc5 {[%clk 00:11:38]} {[%emt 00:00:01]} 9. Qh4
{[%clk 00:12:41]} {[%emt 00:01:02]} Qe7 {[%clk 00:10:30]} {[%emt 00:01:14]} 10.
Bf4 {[%clk 00:12:41]} {[%emt 00:00:05]} Bb4 {[%clk 00:07:00]} {[%emt 00:03:35]}
11. Be2 {[%clk 00:08:39]} {[%emt 00:04:06]} Ne4 {[%clk 00:06:01]} {[%emt
00:01:04]} 12. Qxe7+ {[%clk 00:08:24]} {[%emt 00:00:21]} Kxe7 {[%clk 00:06:03]}
{[%emt 00:00:02]} 13. Bd2 {[%clk 00:04:19]} {[%emt 00:04:11]} Nxd2 {[%clk
00:06:03]} {[%emt 00:00:04]} 14. Kxd2 {[%clk 00:04:23]} {[%emt 00:00:02]} Rd8
{[%clk 00:05:39]} {[%emt 00:00:29]} 15. Bd3 {[%clk 00:04:27]} {[%emt 00:00:02]}
Nc5 {[%clk 00:04:56]} {[%emt 00:00:47]} 16. Ke3 {[%clk 00:02:34]} {[%emt
00:01:58]} Ne6 {[%clk 00:04:20]} {[%emt 00:00:40]} 17. Ne4 {[%clk 00:02:27]}
{[%emt 00:00:12]} f6 {[%clk 00:03:36]} {[%emt 00:00:49]} 18. exf6+ {[%clk
00:02:07]} {[%emt 00:00:25]} gxf6 {[%clk 00:03:38]} {[%emt 00:00:02]} 19. Rad1
{[%clk 00:02:04]} {[%emt 00:00:08]} Ba5 {[%clk 00:03:29]} {[%emt 00:00:15]} 20.
g3 {[%clk 00:02:06]} {[%emt 00:00:03]} Bb6+ {[%clk 00:03:32]} {[%emt 00:00:02]}
21. Ke2 {[%clk 00:02:10]} {[%emt 00:00:01]} h6 {[%clk 00:03:27]} {[%emt
00:00:10]} 22. c3 {[%clk 00:02:08]} {[%emt 00:00:07]} Ng5 {[%clk 00:03:20]}
{[%emt 00:00:12]} 23. Nfxg5 {[%clk 00:01:42]} {[%emt 00:00:30]} hxg5 {[%clk
00:03:16]} {[%emt 00:00:08]} 24. Kf3 {[%clk 00:01:45]} {[%emt 00:00:03]} Bh3
{[%clk 00:03:01]} {[%emt 00:00:20]} 25. Rhe1 {[%clk 00:01:27]} {[%emt
00:00:23]} Kf7 {[%clk 00:02:55]} {[%emt 00:00:11]} 26. Bc4+ {[%clk 00:01:22]}
{[%emt 00:00:10]} Kg6 {[%clk 00:02:58]} {[%emt 00:00:01]} 27. Nf2 {[%clk
00:01:25]} {[%emt 00:00:02]} Bf5 {[%clk 00:02:49]} {[%emt 00:00:14]} 28. g4
{[%clk 00:01:20]} {[%emt 00:00:11]} Bc2 {[%clk 00:02:44]} {[%emt 00:00:09]} 29.
Rc1 {[%clk 00:01:12]} {[%emt 00:00:15]} Rd2 {[%clk 00:02:27]} {[%emt 00:00:21]}
30. Re2 {[%clk 00:01:16]} {[%emt 00:00:02]} Rad8 {[%clk 00:02:30]} 31. Rxc2
{[%clk 00:01:18]} {[%emt 00:00:03]} Rxc2 {[%clk 00:02:05]} {[%emt 00:00:30]} 32.
Rxc2 {[%clk 00:01:22]} {[%emt 00:00:01]} Re8 {[%clk 00:02:09]} 33. Bd3+ {[%clk
00:01:24]} {[%emt 00:00:03]} Kg7 {[%clk 00:02:08]} {[%emt 00:00:05]} 34. Ne4
{[%clk 00:01:26]} {[%emt 00:00:03]} Rh8 {[%clk 00:02:02]} {[%emt 00:00:11]} 35.
Ng3 {[%clk 00:01:23]} {[%emt 00:00:08]} Bg1 {[%clk 00:01:33]} {[%emt 00:00:34]}
36. Rg2 {[%clk 00:01:11]} {[%emt 00:00:17]} Bb6 {[%clk 00:01:25]} {[%emt
00:00:14]} 37. Re2 {[%clk 00:01:11]} {[%emt 00:00:04]} Bc5 {[%clk 00:01:21]}
{[%emt 00:00:09]} 38. b4 {[%clk 00:01:07]} {[%emt 00:00:10]} Bf8 {[%clk
00:01:15]} {[%emt 00:00:10]} 39. Nh5+ {[%clk 00:01:09]} {[%emt 00:00:02]} Kf7
{[%clk 00:01:12]} {[%emt 00:00:08]} 40. Bc4+ {[%clk 00:01:11]} {[%emt
00:00:04]} Kg6 {[%clk 00:01:11]} {[%emt 00:00:06]} 41. Re6 {[%clk 00:01:08]}
{[%emt 00:00:09]} Bg7 {[%clk 00:01:07]} {[%emt 00:00:09]} 42. Nxg7 {[%clk
00:01:04]} {[%emt 00:00:09]} Kxg7 {[%clk 00:01:11]} {[%emt 00:00:02]} 43. Re7+
{[%clk 00:01:02]} {[%emt 00:00:06]} Kf8 {[%clk 00:01:15]} 44. Rxb7 {[%clk
00:01:06]} {[%emt 00:00:02]} Rxh2 {[%clk 00:01:19]} 45. Rxa7 {[%clk 00:00:56]}
{[%emt 00:00:15]} Rh3+ {[%clk 00:01:22]} {[%emt 00:00:02]} 46. Ke4 {[%clk
00:00:59]} {[%emt 00:00:02]} Rxc3 {[%clk 00:01:25]} {[%emt 00:00:01]} 47. Be6
{[%clk 00:01:00]} {[%emt 00:00:03]} Rc2 {[%clk 00:01:18]} {[%emt 00:00:13]} 48.
Kf5 {[%clk 00:00:54]} {[%emt 00:00:11]} Rf2+ {[%clk 00:01:10]} {[%emt
00:00:13]} 49. Kg6 {[%clk 00:00:58]} {[%emt 00:00:02]} Ke8 {[%clk 00:01:06]}
{[%emt 00:00:10]} 50. Bf5 {[%clk 00:00:58]} {[%emt 00:00:05]} Rf4 {[%clk
00:01:00]} {[%emt 00:00:11]} 51. a3 {[%clk 00:01:00]} {[%emt 00:00:04]} 1-0

[Event "Elite Hotels Open 2024"]
[Site "Elite Stadshotellet, Kungsgatan 6, Vaxjo, Sweden"]
[Date "2024.02.09"]
[Round "1.14"]
[White "Gerdes, Sebastian"]
[Black "Crevatin, Leo"]
[Result "0-1"]
[TimeControl "15 minutes + 5 seconds per move from move one (Round 1 - 4) / 90 minutes + 30 seconds per move from move one (Round 5 - 8)"]
[BlackTitle "FM"]
[WhiteFideId "1745697"]
[BlackFideId "1726307"]
[WhiteElo "1805"]
[BlackElo "2303"]

1. d4 {[%clk 00:15:02]} {[%emt 00:00:06]} Nf6 {[%clk 00:15:02]} {[%emt
00:00:09]} 2. c4 {[%clk 00:14:58]} {[%emt 00:00:09]} e6 {[%clk 00:15:06]}
{[%emt 00:00:02]} 3. Nf3 {[%clk 00:14:51]} {[%emt 00:00:12]} d5 {[%clk
00:15:09]} {[%emt 00:00:02]} 4. Nc3 {[%clk 00:14:38]} {[%emt 00:00:18]} dxc4
{[%clk 00:15:12]} {[%emt 00:00:03]} 5. e3 {[%clk 00:14:27]} {[%emt 00:00:15]}
a6 {[%clk 00:15:10]} {[%emt 00:00:07]} 6. a4 {[%clk 00:13:45]} {[%emt
00:00:47]} b6 {[%clk 00:15:13]} {[%emt 00:00:03]} 7. Bxc4 {[%clk 00:13:43]}
{[%emt 00:00:07]} Bb7 {[%clk 00:15:12]} {[%emt 00:00:06]} 8. O-O {[%clk
00:13:28]} {[%emt 00:00:19]} Bb4 {[%clk 00:14:27]} {[%emt 00:00:51]} 9. Qe2
{[%clk 00:12:25]} {[%emt 00:01:07]} O-O {[%clk 00:13:33]} {[%emt 00:00:58]} 10.
Rd1 {[%clk 00:11:56]} {[%emt 00:00:34]} Qe7 {[%clk 00:12:12]} {[%emt 00:01:26]}
11. Ne5 {[%clk 00:11:13]} {[%emt 00:00:48]} Nbd7 {[%clk 00:11:46]} {[%emt
00:00:33]} 12. Nxd7 {[%clk 00:11:05]} {[%emt 00:00:12]} Qxd7 {[%clk 00:11:20]}
{[%emt 00:00:32]} 13. f3 {[%clk 00:11:08]} {[%emt 00:00:02]} Qe7 {[%clk
00:09:14]} {[%emt 00:02:10]} 14. e4 {[%clk 00:10:52]} {[%emt 00:00:20]} c5
{[%clk 00:08:23]} {[%emt 00:00:57]} 15. d5 {[%clk 00:09:58]} {[%emt 00:00:59]}
Rfd8 {[%clk 00:07:07]} {[%emt 00:01:21]} 16. dxe6 {[%clk 00:09:40]} {[%emt
00:00:23]} Rxd1+ {[%clk 00:06:57]} {[%emt 00:00:15]} 17. Nxd1 {[%clk 00:09:21]}
{[%emt 00:00:24]} fxe6 {[%clk 00:06:59]} {[%emt 00:00:03]} 18. Be3 {[%clk
00:08:52]} {[%emt 00:00:34]} Nd7 {[%clk 00:06:29]} {[%emt 00:00:35]} 19. Nf2
{[%clk 00:08:22]} {[%emt 00:00:33]} Ne5 {[%clk 00:06:00]} {[%emt 00:00:36]} 20.
Rd1 {[%clk 00:08:24]} {[%emt 00:00:03]} Nxc4 {[%clk 00:04:56]} {[%emt
00:01:10]} 21. Qxc4 {[%clk 00:08:26]} {[%emt 00:00:03]} Kh8 {[%clk 00:04:54]}
{[%emt 00:00:07]} 22. Ng4 {[%clk 00:05:00]} {[%emt 00:03:30]} Bc6 {[%clk
00:04:41]} {[%emt 00:00:18]} 23. Ne5 {[%clk 00:04:34]} {[%emt 00:00:30]} Bxa4
{[%clk 00:04:27]} {[%emt 00:00:21]} 24. Bg5 {[%clk 00:04:36]} {[%emt 00:00:03]}
Qe8 {[%clk 00:04:29]} {[%emt 00:00:03]} 25. Rd6 {[%clk 00:04:38]} {[%emt
00:00:02]} Bb5 {[%clk 00:03:16]} {[%emt 00:01:19]} 26. Qxe6 {[%clk 00:04:10]}
{[%emt 00:00:32]} Qxe6 {[%clk 00:02:58]} {[%emt 00:00:24]} 27. Rxe6 {[%clk
00:04:13]} {[%emt 00:00:02]} c4 {[%clk 00:02:11]} {[%emt 00:00:51]} 28. Kf2
{[%clk 00:03:56]} {[%emt 00:00:21]} c3 {[%clk 00:01:40]} {[%emt 00:00:37]} 29.
bxc3 {[%clk 00:03:41]} {[%emt 00:00:20]} Bxc3 {[%clk 00:01:44]} {[%emt
00:00:02]} 30. Bf4 {[%clk 00:03:24]} {[%emt 00:00:20]} Re8 {[%clk 00:01:30]}
{[%emt 00:00:20]} 31. Nf7+ {[%clk 00:02:57]} {[%emt 00:00:32]} Kg8 {[%clk
00:01:33]} {[%emt 00:00:02]} 32. Rxe8+ {[%clk 00:03:01]} {[%emt 00:00:02]} Bxe8
{[%clk 00:01:34]} {[%emt 00:00:04]} 33. Nd6 {[%clk 00:03:05]} Bc6 {[%clk
00:01:28]} {[%emt 00:00:11]} 34. Ke2 {[%clk 00:03:09]} {[%emt 00:00:02]} b5
{[%clk 00:01:21]} {[%emt 00:00:13]} 35. Kd3 {[%clk 00:03:11]} {[%emt 00:00:02]}
Be1 {[%clk 00:01:11]} {[%emt 00:00:15]} 36. e5 {[%clk 00:03:03]} {[%emt
00:00:13]} Bd5 {[%clk 00:01:02]} {[%emt 00:00:14]} 37. Bd2 {[%clk 00:02:51]}
{[%emt 00:00:18]} Bxd2 {[%clk 00:01:02]} {[%emt 00:00:06]} 38. Kxd2 {[%clk
00:02:55]} {[%emt 00:00:01]} b4 {[%clk 00:00:57]} {[%emt 00:00:10]} 39. Kc2
{[%clk 00:02:57]} {[%emt 00:00:02]} a5 {[%clk 00:00:54]} {[%emt 00:00:09]} 40.
Nf5 {[%clk 00:02:52]} {[%emt 00:00:10]} Kf7 {[%clk 00:00:45]} {[%emt 00:00:13]}
41. Ne3 {[%clk 00:02:55]} {[%emt 00:00:02]} Be6 {[%clk 00:00:37]} {[%emt
00:00:12]} 42. f4 {[%clk 00:02:58]} {[%emt 00:00:02]} a4 {[%clk 00:00:22]}
{[%emt 00:00:21]} 43. f5 {[%clk 00:02:52]} {[%emt 00:00:11]} Bc8 {[%clk
00:00:18]} {[%emt 00:00:09]} 44. g4 {[%clk 00:02:52]} {[%emt 00:00:05]} Bb7
{[%clk 00:00:15]} {[%emt 00:00:08]} 45. Kb2 {[%clk 00:02:53]} {[%emt 00:00:04]}
Be4 {[%clk 00:00:12]} {[%emt 00:00:08]} 46. h4 {[%clk 00:02:49]} {[%emt
00:00:09]} g6 {[%clk 00:00:16]} {[%emt 00:00:02]} 47. Ka2 {[%clk 00:02:49]}
{[%emt 00:00:05]} Bd3 {[%clk 00:00:09]} {[%emt 00:00:12]} 48. Kb2 {[%clk
00:02:51]} {[%emt 00:00:03]} Bb5 {[%clk 00:00:11]} {[%emt 00:00:03]} 49. Ka2
{[%clk 00:02:47]} {[%emt 00:00:09]} Ba6 {[%clk 00:00:12]} {[%emt 00:00:05]} 50.
Kb2 {[%clk 00:02:44]} {[%emt 00:00:08]} Bd3 {[%clk 00:00:14]} {[%emt 00:00:03]}
51. Ka2 {[%clk 00:02:47]} {[%emt 00:00:02]} gxf5 {[%clk 00:00:17]} {[%emt
00:00:01]} 52. gxf5 {[%clk 00:02:50]} {[%emt 00:00:02]} h6 {[%clk 00:00:21]}
{[%emt 00:00:01]} 53. Kb2 {[%clk 00:02:54]} {[%emt 00:00:01]} Ke8 {[%clk
00:00:25]} {[%emt 00:00:01]} 54. e6 {[%clk 00:02:51]} {[%emt 00:00:07]} Ke7
{[%clk 00:00:17]} {[%emt 00:00:13]} 55. Nd5+ {[%clk 00:02:55]} {[%emt
00:00:01]} Kd6 {[%clk 00:00:18]} {[%emt 00:00:03]} 56. e7 {[%clk 00:02:06]}
{[%emt 00:00:55]} Bb5 {[%clk 00:00:12]} {[%emt 00:00:12]} 57. Nxb4 {[%clk
00:02:08]} {[%emt 00:00:02]} Kxe7 {[%clk 00:00:15]} {[%emt 00:00:02]} 58. Nc2
{[%clk 00:02:11]} {[%emt 00:00:02]} Kf6 {[%clk 00:00:18]} {[%emt 00:00:03]} 59.
Ka3 {[%clk 00:02:11]} {[%emt 00:00:04]} Bd7 {[%clk 00:00:16]} {[%emt 00:00:07]}
60. Nd4 {[%clk 00:02:03]} {[%emt 00:00:12]} Ke5 {[%clk 00:00:19]} {[%emt
00:00:02]} 61. f6 {[%clk 00:01:10]} {[%emt 00:00:58]} Kxf6 {[%clk 00:00:23]}
{[%emt 00:00:01]} 62. Nf3 {[%clk 00:00:58]} {[%emt 00:00:16]} Kf5 {[%clk
00:00:16]} {[%emt 00:00:13]} 63. h5 {[%clk 00:01:02]} Be8 {[%clk 00:00:17]}
{[%emt 00:00:04]} 64. Kb4 {[%clk 00:01:01]} {[%emt 00:00:06]} Bxh5 {[%clk
00:00:18]} {[%emt 00:00:04]} 65. Nh4+ {[%clk 00:00:50]} {[%emt 00:00:16]} Kg4
{[%clk 00:00:14]} {[%emt 00:00:09]} 66. Ng2 {[%clk 00:00:54]} {[%emt 00:00:01]}
Be8 {[%clk 00:00:15]} {[%emt 00:00:04]} 67. Ka3 {[%clk 00:00:56]} {[%emt
00:00:03]} h5 {[%clk 00:00:16]} {[%emt 00:00:04]} 68. Ne3+ {[%clk 00:00:54]}
{[%emt 00:00:06]} Kg5 {[%clk 00:00:12]} {[%emt 00:00:10]} 69. Ng2 {[%clk
00:00:54]} {[%emt 00:00:05]} Bc6 {[%clk 00:00:16]} {[%emt 00:00:02]} 70. Ne3
{[%clk 00:00:55]} {[%emt 00:00:03]} h4 {[%clk 00:00:19]} {[%emt 00:00:02]} 71.
Kb4 {[%clk 00:00:53]} {[%emt 00:00:07]} Kf4 {[%clk 00:00:15]} {[%emt 00:00:08]}
72. Nf1 {[%clk 00:00:55]} {[%emt 00:00:03]} h3 {[%clk 00:00:16]} {[%emt
00:00:05]} 73. Ka3 {[%clk 00:00:46]} {[%emt 00:00:14]} Bg2 {[%clk 00:00:16]}
{[%emt 00:00:05]} 74. Nd2 {[%clk 00:00:40]} {[%emt 00:00:11]} h2 {[%clk
00:00:19]} {[%emt 00:00:02]} 75. Kxa4 {[%clk 00:00:42]} {[%emt 00:00:03]} h1=Q
{[%clk 00:00:19]} {[%emt 00:00:04]} 76. Nc4 {[%clk 00:00:42]} {[%emt 00:00:06]}
Qh8 {[%clk 00:00:20]} {[%emt 00:00:04]} 77. Na5 {[%clk 00:00:44]} {[%emt
00:00:03]} Be4 {[%clk 00:00:22]} {[%emt 00:00:03]} 78. Nc4 {[%clk 00:00:47]}
{[%emt 00:00:02]} Qa8+ {[%clk 00:00:23]} {[%emt 00:00:04]} 79. Na5 {[%clk
00:00:50]} {[%emt 00:00:02]} Bc6+ {[%clk 00:00:24]} {[%emt 00:00:04]} 80. Kb4
{[%clk 00:00:53]} {[%emt 00:00:02]} Qb8+ {[%clk 00:00:24]} {[%emt 00:00:04]} 81.
Ka3 {[%clk 00:00:53]} {[%emt 00:00:05]} Qb5 {[%clk 00:00:24]} {[%emt 00:00:06]}
82. Nb3 {[%clk 00:00:54]} {[%emt 00:00:03]} Ke3 {[%clk 00:00:23]} {[%emt
00:00:06]} 83. Nc1 {[%clk 00:00:53]} {[%emt 00:00:07]} Qa4+ {[%clk 00:00:21]}
{[%emt 00:00:07]} 84. Kb2 {[%clk 00:00:56]} {[%emt 00:00:01]} Qb4+ {[%clk
00:00:25]} {[%emt 00:00:02]} 85. Ka1 {[%clk 00:00:59]} {[%emt 00:00:02]} Be4
{[%clk 00:00:19]} {[%emt 00:00:11]} 86. Na2 {[%clk 00:01:02]} {[%emt 00:00:02]}
Qd4+ {[%clk 00:00:21]} {[%emt 00:00:03]} 87. Nc3 {[%clk 00:01:03]} {[%emt
00:00:03]} Qxc3+ {[%clk 00:00:24]} {[%emt 00:00:02]} 88. Ka2 {[%clk 00:01:06]}
{[%emt 00:00:01]} Bd5+ {[%clk 00:00:28]} {[%emt 00:00:02]} 89. Kb1 {[%clk
00:01:10]} {[%emt 00:00:01]} Qb3+ {[%clk 00:00:25]} {[%emt 00:00:08]} 90. Ka1
{[%clk 00:01:13]} {[%emt 00:00:02]} Qa2# {[%clk 00:00:29]} {[%emt 00:00:02]}
0-1

[Event "Elite Hotels Open 2024"]
[Site "Elite Stadshotellet, Kungsgatan 6, Vaxjo, Sweden"]
[Date "2024.02.09"]
[Round "1.15"]
[White "Falkevall, Axel"]
[Black "Dingertz, Filip"]
[Result "1-0"]
[TimeControl "15 minutes + 5 seconds per move from move one (Round 1 - 4) / 90 minutes + 30 seconds per move from move one (Round 5 - 8)"]
[WhiteTitle "FM"]
[WhiteFideId "1735560"]
[BlackFideId "1757288"]
[WhiteElo "2290"]
[BlackElo "1801"]

1. e4 {[%clk 00:15:06]} {[%emt 00:00:03]} e5 {[%clk 00:15:07]} {[%emt
00:00:04]} 2. Nf3 {[%clk 00:15:09]} {[%emt 00:00:02]} Nc6 {[%clk 00:15:12]} 3.
Bc4 {[%clk 00:15:00]} {[%emt 00:00:15]} Bc5 {[%clk 00:15:09]} {[%emt 00:00:08]}
4. c3 {[%clk 00:15:03]} {[%emt 00:00:02]} Nf6 {[%clk 00:15:12]} {[%emt
00:00:02]} 5. d3 {[%clk 00:15:06]} {[%emt 00:00:01]} O-O {[%clk 00:15:14]}
{[%emt 00:00:04]} 6. O-O {[%clk 00:15:09]} {[%emt 00:00:02]} d5 {[%clk
00:13:54]} {[%emt 00:01:25]} 7. exd5 {[%clk 00:15:12]} {[%emt 00:00:02]} Nxd5
{[%clk 00:13:59]} 8. Re1 {[%clk 00:15:13]} {[%emt 00:00:04]} Nb6 {[%clk
00:12:58]} {[%emt 00:01:07]} 9. Bb5 {[%clk 00:14:52]} {[%emt 00:00:26]} f6
{[%clk 00:10:18]} {[%emt 00:02:45]} 10. a4 {[%clk 00:13:22]} {[%emt 00:01:35]}
a5 {[%clk 00:09:47]} {[%emt 00:00:36]} 11. Nbd2 {[%clk 00:12:40]} {[%emt
00:00:47]} Bd6 {[%clk 00:08:03]} {[%emt 00:01:49]} 12. Ne4 {[%clk 00:11:42]}
{[%emt 00:01:02]} Kh8 {[%clk 00:06:56]} {[%emt 00:01:13]} 13. Nxd6 {[%clk
00:09:58]} {[%emt 00:01:49]} Qxd6 {[%clk 00:06:49]} {[%emt 00:00:12]} 14. Nd2
{[%clk 00:09:36]} {[%emt 00:00:26]} Bf5 {[%clk 00:05:51]} {[%emt 00:01:03]} 15.
Ne4 {[%clk 00:09:31]} {[%emt 00:00:10]} Qd5 {[%clk 00:04:42]} {[%emt 00:01:15]}
16. Be3 {[%clk 00:08:47]} {[%emt 00:00:49]} Rad8 {[%clk 00:04:26]} {[%emt
00:00:22]} 17. Qc2 {[%clk 00:08:00]} {[%emt 00:00:52]} Na7 {[%clk 00:03:51]}
{[%emt 00:00:40]} 18. Bxb6 {[%clk 00:07:24]} {[%emt 00:00:41]} Nxb5 {[%clk
00:03:55]} {[%emt 00:00:01]} 19. Bxa5 {[%clk 00:06:42]} {[%emt 00:00:47]} Na7
{[%clk 00:02:03]} {[%emt 00:01:57]} 20. Bxc7 {[%clk 00:06:14]} {[%emt
00:00:32]} Qxd3 {[%clk 00:02:03]} {[%emt 00:00:06]} 21. Qxd3 {[%clk 00:06:02]}
{[%emt 00:00:17]} Rxd3 {[%clk 00:02:06]} {[%emt 00:00:01]} 22. Nc5 {[%clk
00:05:41]} {[%emt 00:00:26]} Rd2 {[%clk 00:02:10]} {[%emt 00:00:01]} 23. b4
{[%clk 00:05:31]} {[%emt 00:00:15]} b5 {[%clk 00:01:42]} {[%emt 00:00:33]} 24.
Bb6 {[%clk 00:04:41]} {[%emt 00:00:55]} Nc8 {[%clk 00:01:38]} {[%emt 00:00:10]}
25. a5 {[%clk 00:04:38]} {[%emt 00:00:07]} Bc2 {[%clk 00:00:28]} {[%emt
00:01:14]} 26. Nb7 {[%clk 00:03:56]} {[%emt 00:00:48]} Rd7 {[%clk 00:00:19]}
{[%emt 00:00:14]} 27. Bc5 {[%clk 00:03:50]} {[%emt 00:00:10]} Re8 {[%clk
00:00:14]} {[%emt 00:00:10]} 28. a6 {[%clk 00:03:52]} {[%emt 00:00:03]} f5
{[%clk 00:00:08]} {[%emt 00:00:11]} 29. a7 {[%clk 00:03:50]} {[%emt 00:00:06]}
1-0